bitfinex-derivatives/quotes_BTCF0:USTF0_20241006
["timestamp","ask_amount","ask_price","bid_price","bid_amount"]
[1728245891564,0.06371,62782.0,62780.0,0.37118906]
[1728245892574,0.06371,62782.0,62780.0,0.37018906]
[1728245892758,0.06471,62782.0,62780.0,0.37218906]
[1728245901064,0.06471,62782.0,62780.0,0.01138906]
[1728245905466,0.12184386,62782.0,62780.0,0.01138906]
[1728245913374,0.06471,62782.0,62780.0,0.01138906]
[1728245915473,0.063715,62776.0,62775.0,0.0037]
[1728245915676,0.063717,62774.0,62768.0,0.0074]
[1728245915983,0.07188162,62774.0,62768.0,0.0074]
[1728245916881,0.07988162,62774.0,62772.0,0.3618]
[1728245917085,0.11,62773.0,62772.0,0.3618]
[1728245918183,0.11,62773.0,62772.0,0.001]
[1728245918383,0.113,62773.0,62772.0,0.001]
[1728245919478,0.123,62773.0,62772.0,0.001]
[1728245920489,0.18014483,62773.0,62772.0,0.001]
[1728245922593,0.123,62773.0,62772.0,0.001]
[1728245923580,0.063724,62767.0,62766.0,0.3645]
[1728245923782,0.063724,62767.0,62766.0,0.3608]
[1728245923783,0.173724,62767.0,62766.0,0.3608]
[1728245924876,0.173724,62767.0,62766.0,0.3638]
[1728245925386,0.177724,62767.0,62766.0,0.3638]
[1728245925686,0.177724,62767.0,62766.0,0.003]
[1728245927083,0.538524,62767.0,62766.0,0.003]
[1728245928682,0.56771537,62767.0,62766.0,0.003]
[1728245928874,0.20691537,62767.0,62766.0,0.003]
[1728245929082,0.56771537,62767.0,62766.0,0.003]
[1728245930891,0.20691537,62767.0,62766.0,0.003]
[1728245931075,0.56771537,62767.0,62766.0,0.003]
[1728245932774,0.20691537,62767.0,62766.0,0.003]
[1728245933180,0.56771537,62767.0,62766.0,0.003]
[1728245934978,0.56771537,62767.0,62760.0,0.03638976]
[1728245935282,0.17373,62761.0,62760.0,0.03268976]
[1728245935473,0.17373,62761.0,62760.0,0.0303]
[1728245935675,0.063733,62758.0,62757.0,0.3608]
[1728245935886,0.173733,62758.0,62757.0,0.3608]
[1728245936393,0.063739,62752.0,62751.0,0.0037]
[1728245936586,0.173739,62752.0,62750.0,0.0308]
[1728245937598,0.0084,62758.0,62750.0,0.0308]
[1728245937886,0.11,62757.0,62751.0,0.11]
[1728245938192,0.001,62752.0,62750.0,0.0348]
[1728245938387,0.001,62752.0,62751.0,0.11]
[1728245938888,0.1174,62757.0,62751.0,0.11]
[1728245939088,0.11,62757.0,62751.0,0.11]
[1728245939288,0.11,62757.0,62750.0,0.0318]
[1728245939991,0.116,62757.0,62751.0,0.001]
[1728245940697,0.178735,62757.0,62750.0,0.0308]
[1728245941079,0.11,62754.0,62750.0,0.0308]
[1728245941293,0.11,62754.0,62751.0,0.001]
[1728245942893,0.11,62754.0,62750.0,0.0308]
[1728245943490,0.116,62754.0,62751.0,0.001]
[1728245943686,0.116,62754.0,62753.0,0.3608]
[1728245944185,0.115,62754.0,62753.0,0.3608]
[1728245944387,0.115,62754.0,62750.0,0.0318]
[1728245944695,0.115,62754.0,62753.0,0.3608]
[1728245945295,0.117,62754.0,62753.0,0.3608]
[1728245945491,0.112,62754.0,62753.0,0.3608]
[1728245945694,0.118,62754.0,62753.0,0.3608]
[1728245946087,0.112,62754.0,62753.0,0.3608]
[1728245946287,0.12,62754.0,62753.0,0.001]
[1728245946483,0.12,62754.0,62753.0,0.3618]
[1728245950800,0.071131,62760.0,62753.0,1.43988]
[1728245951098,0.071131,62760.0,62756.0,0.11]
[1728245951400,0.173731,62760.0,62754.0,0.0309]
[1728245952299,0.175731,62760.0,62754.0,0.0309]
[1728245952693,0.184731,62760.0,62756.0,0.001]
[1728245952899,0.184731,62760.0,62758.0,0.3608]
[1728245953098,0.175731,62760.0,62758.0,0.3608]
[1728245953298,0.184731,62760.0,62758.0,0.3608]
[1728245954304,0.175731,62760.0,62758.0,0.3608]
[1728245954800,0.179731,62760.0,62758.0,0.3618]
[1728245956390,0.116,62760.0,62758.0,0.3618]
[1728245956790,0.116,62760.0,62758.0,0.001]
[1728245956993,0.116,62760.0,62758.0,0.3618]
[1728245958592,0.17315191,62760.0,62758.0,0.3618]
[1728245958804,0.05715191,62759.0,62758.0,0.3618]
[1728245959006,0.17315191,62760.0,62758.0,0.3618]
[1728245960205,0.009,62759.0,62758.0,0.3618]
[1728245960404,0.015,62759.0,62758.0,0.3628]
[1728245960610,0.006,62759.0,62758.0,0.3618]
[1728245960804,0.006,62759.0,62758.0,0.3628]
[1728245961508,0.119,62760.0,62758.0,0.3618]
[1728245961701,0.18215191,62760.0,62758.0,0.3628]
[1728245962795,0.06615191,62759.0,62758.0,0.3628]
[1728245962996,0.009,62759.0,62758.0,0.3628]
[1728245963210,0.009,62759.0,62758.0,0.002]
[1728245963394,0.006,62759.0,62758.0,0.002]
[1728245963998,0.015,62759.0,62758.0,0.002]
[1728245975912,0.015,62759.0,62758.0,0.3628]
[1728245993629,0.015,62759.0,62758.0,0.002]
[1728245993933,0.015,62759.0,62758.0,0.3628]
[1728245998826,0.015,62759.0,62758.0,0.002]
[1728245999027,0.015,62759.0,62758.0,0.3628]
[1728246005832,0.125,62759.0,62758.0,0.3628]
[1728246006741,0.125,62759.0,62758.0,0.002]
[1728246006936,0.125,62759.0,62758.0,0.3628]
[1728246011850,0.125,62759.0,62758.0,0.002]
[1728246012150,0.125,62759.0,62758.0,0.3628]
[1728246012545,0.125,62759.0,62758.0,0.002]
[1728246013146,0.125,62759.0,62758.0,0.3628]
[1728246014042,0.125,62759.0,62758.0,0.002]
[1728246014243,0.125,62759.0,62758.0,0.3628]
[1728246014955,0.125,62759.0,62758.0,0.002]
[1728246015250,0.125,62759.0,62758.0,0.3628]
[1728246015654,0.125,62759.0,62758.0,0.002]
[1728246016142,0.125,62759.0,62758.0,0.3628]
[1728246018254,0.125,62759.0,62758.0,0.002]
[1728246018451,0.60304,62759.0,62752.0,0.0037]
[1728246018749,0.11,62753.0,62752.0,0.0037]
[1728246018948,0.11,62753.0,62751.0,0.3608]
[1728246020353,0.11,62753.0,62746.0,0.0037]
[1728246020548,0.11,62747.0,62744.0,0.3608]
[1728246022361,0.11,62747.0,62744.0,0.3628]
[1728246023053,0.11,62747.0,62746.0,0.005]
[1728246023856,0.111,62747.0,62744.0,0.3678]
[1728246024452,0.111,62747.0,62744.0,0.3658]
[1728246024656,0.111,62747.0,62746.0,0.005]
[1728246026355,0.111,62747.0,62744.0,0.007]
[1728246026749,0.13994264,62747.0,62744.0,0.007]
[1728246026951,0.13994264,62747.0,62744.0,0.005]
[1728246027145,0.13994264,62747.0,62746.0,0.005]
[1728246027949,0.13994264,62747.0,62744.0,0.007]
[1728246028550,0.13994264,62747.0,62744.0,0.005]
[1728246029553,0.13994264,62747.0,62746.0,0.005]
[1728246030860,0.14094264,62747.0,62744.0,0.019]
[1728246031160,0.11,62745.0,62744.0,0.019]
[1728246031466,0.11,62745.0,62744.0,0.005]
[1728246032368,0.111,62745.0,62744.0,0.019]
[1728246032661,0.111,62745.0,62744.0,0.014]
[1728246033463,0.112,62745.0,62744.0,0.019]
[1728246042067,1.19012,62745.0,62744.0,0.019]
[1728246042263,1.22332,62745.0,62744.0,0.019]
[1728246048467,1.28049213,62745.0,62744.0,0.019]
[1728246048661,0.68049213,62745.0,62744.0,0.019]
[1728246049057,0.20237213,62745.0,62734.0,0.0337]
[1728246049362,0.173757,62735.0,62733.0,0.00239042]
[1728246049570,0.063759,62733.0,62730.0,0.3608]
[1728246049769,0.11,62732.0,62730.0,0.3608]
[1728246051771,0.111,62732.0,62730.0,0.3658]
[1728246052074,0.112,62732.0,62730.0,0.3658]
[1728246052275,0.111,62732.0,62730.0,0.3658]
[1728246052569,0.112,62732.0,62730.0,0.005]
[1728246052967,0.14131071,62732.0,62730.0,0.005]
[1728246053369,0.03131071,62732.0,62730.0,0.005]
[1728246053565,0.11,62731.0,62730.0,0.005]
[1728246054976,0.111,62731.0,62730.0,0.004]
[1728246076185,0.001,62731.0,62730.0,0.004]
[1728246076390,0.001,62731.0,62730.0,0.0365]
[1728246077691,0.111,62731.0,62730.0,0.0365]
[1728246083188,0.001,62731.0,62730.0,0.0365]
[1728246084191,0.001,62731.0,62730.0,0.08429709]
[1728246084395,0.001,62731.0,62730.0,0.0365]
[1728246085295,0.001,62731.0,62730.0,0.08429709]
[1728246085603,0.001,62731.0,62730.0,0.0365]
[1728246089696,0.001,62731.0,62730.0,0.004]
[1728246090999,0.064761,62731.0,62730.0,0.004]
[1728246097913,0.001,62731.0,62730.0,0.004]
[1728246101217,0.064761,62731.0,62730.0,0.004]
[1728246110235,0.064761,62731.0,62723.0,0.0037]
[1728246110236,0.001,62731.0,62723.0,0.0037]
[1728246110416,0.001,62731.0,62720.0,0.0037]
[1728246110417,0.063768,62724.0,62720.0,0.0037]
[1728246110617,0.11,62721.0,62717.0,0.00239125]
[1728246110921,0.11,62718.0,62717.0,0.00239125]
[1728246112618,0.111,62718.0,62717.0,0.00239125]
[1728246113723,0.112,62718.0,62717.0,0.00239125]
[1728246115826,0.002,62718.0,62717.0,0.00239125]
[1728246116018,0.112,62718.0,62717.0,0.00239125]
[1728246118522,0.175774,62718.0,62717.0,0.00239125]
[1728246120529,0.065774,62718.0,62717.0,0.00239125]
[1728246120822,0.175774,62718.0,62717.0,0.00239125]
[1728246124523,0.002,62718.0,62717.0,0.00239125]
[1728246127431,0.002,62718.0,62717.0,0.36319125]
[1728246133335,0.002,62718.0,62717.0,0.00239125]
[1728246134449,0.002,62718.0,62717.0,0.36319125]
[1728246135340,0.002,62718.0,62717.0,0.41096248]
[1728246135652,0.002,62718.0,62717.0,0.36319125]
[1728246136546,0.002,62718.0,62717.0,0.41096248]
[1728246138347,0.002,62718.0,62717.0,0.41099661]
[1728246138551,0.002,62718.0,62717.0,0.36319125]
[1728246144850,0.002,62718.0,62717.0,0.00239125]
[1728246145048,0.002,62718.0,62717.0,0.72399125]
[1728246151263,0.0111,62725.0,62717.0,1.80231125]
[1728246151468,0.0111,62725.0,62724.0,0.534568]
[1728246151664,0.03959838,62731.0,62727.0,0.063764]
[1728246151857,0.03959838,62731.0,62724.0,0.4708]
[1728246151858,0.0111,62734.0,62728.0,0.11]
[1728246152059,0.11,62735.0,62729.0,0.063763]
[1728246152967,0.063758,62734.0,62729.0,0.063763]
[1728246153366,0.11,62732.0,62729.0,0.063763]
[1728246154258,0.11,62732.0,62729.0,0.064763]
[1728246154864,0.111,62732.0,62729.0,0.065763]
[1728246155373,0.111,62732.0,62729.0,0.067763]
[1728246157473,0.001,62732.0,62730.0,0.063761]
[1728246158763,0.001,62732.0,62730.0,0.064761]
[1728246158965,0.001,62732.0,62730.0,0.065761]
[1728246160167,0.001,62732.0,62731.0,0.11]
[1728246161375,0.001,62732.0,62731.0,0.111]
[1728246161571,0.001,62732.0,62731.0,0.112]
[1728246164470,0.001,62732.0,62731.0,0.4728]
[1728246171585,0.0111,62738.0,62737.0,0.063755]
[1728246171776,0.0111,62744.0,62740.0,0.063751]
[1728246171978,0.0318033,62745.0,62743.0,0.1063]
[1728246172178,0.00239165,62745.0,62743.0,0.1063]
[1728246173480,0.00239165,62745.0,62740.0,0.173751]
[1728246173985,0.00839165,62745.0,62740.0,0.173751]
[1728246174888,0.00239165,62745.0,62740.0,0.173751]
[1728246175186,0.01339165,62745.0,62740.0,0.173751]
[1728246175685,0.011,62745.0,62740.0,0.173751]
[1728246177580,0.011,62745.0,62741.0,0.06375]
[1728246178886,0.012,62745.0,62741.0,0.06375]
[1728246179488,0.009,62745.0,62741.0,0.06375]
[1728246179689,0.013,62745.0,62741.0,0.06375]
[1728246179988,0.013,62745.0,62742.0,0.063749]
[1728246180981,0.004,62745.0,62742.0,0.063749]
[1728246181294,0.015,62745.0,62742.0,0.063749]
[1728246182981,0.11,62743.0,62742.0,0.063749]
[1728246184191,0.125,62743.0,62742.0,0.424549]
[1728246186687,0.125,62743.0,62742.0,0.063749]
[1728246186890,0.125,62743.0,62742.0,0.424549]
[1728246188491,0.125,62743.0,62742.0,0.063749]
[1728246188691,0.125,62743.0,62742.0,0.424549]
[1728246192104,0.015,62743.0,62742.0,0.424549]
[1728246195605,0.015,62743.0,62742.0,0.063749]
[1728246195897,0.015,62743.0,62742.0,0.424549]
[1728246198788,0.015,62743.0,62742.0,0.063749]
[1728246198989,0.015,62743.0,62742.0,0.424549]
[1728246199595,0.015,62743.0,62742.0,0.063749]
[1728246199795,0.015,62743.0,62742.0,0.424549]
[1728246202109,0.015,62743.0,62742.0,0.063749]
[1728246202496,0.015,62743.0,62742.0,0.424549]
[1728246203594,0.015,62743.0,62742.0,0.063749]
[1728246203809,0.015,62743.0,62742.0,0.424549]
[1728246205006,0.063752,62740.0,62736.0,0.0037]
[1728246205217,0.11,62737.0,62734.0,0.3608]
[1728246205899,0.1742,62737.0,62734.0,0.3608]
[1728246206303,0.1742,62737.0,62734.0,0.3628]
[1728246206702,0.05717478,62736.0,62734.0,0.3628]
[1728246208498,0.05717478,62736.0,62734.0,0.3608]
[1728246208699,0.05717478,62736.0,62734.0,0.3628]
[1728246209300,0.05917478,62736.0,62734.0,0.3628]
[1728246211303,0.05917478,62736.0,62734.0,0.002]
[1728246211612,0.05917478,62736.0,62734.0,0.3628]
[1728246212802,0.12293078,62736.0,62734.0,0.3628]
[1728246213708,0.065756,62736.0,62734.0,0.3628]
[1728246214012,0.002,62736.0,62734.0,0.3628]
[1728246215314,0.065756,62736.0,62734.0,0.3628]
[1728246216516,0.065756,62736.0,62734.0,0.002]
[1728246227523,0.002,62736.0,62735.0,0.4708]
[1728246227822,0.002,62736.0,62735.0,0.5333]
[1728246228212,0.002,62736.0,62735.0,0.4233]
[1728246228813,0.002,62736.0,62735.0,0.4253]
[1728246229024,0.00782116,62740.0,62735.0,0.4253]
[1728246229212,0.003,62736.0,62735.0,0.4253]
[1728246230027,0.07157316,62740.0,62735.0,0.4253]
[1728246230219,0.07457316,62740.0,62735.0,0.4253]
[1728246230417,0.063753,62739.0,62735.0,0.4253]
[1728246231830,0.11,62738.0,62735.0,0.4253]
[1728246232524,0.16717085,62738.0,62735.0,0.4253]
[1728246232728,0.003,62736.0,62735.0,0.4253]
[1728246233322,0.16717085,62738.0,62735.0,0.4253]
[1728246233527,0.17017085,62738.0,62735.0,0.4253]
[1728246233920,0.06017085,62738.0,62735.0,0.4253]
[1728246234119,0.12092385,62739.0,62735.0,0.4233]
[1728246234329,0.003,62736.0,62735.0,0.4253]
[1728246235929,0.063753,62739.0,62735.0,0.4253]
[1728246236229,0.003,62738.0,62735.0,0.4253]
[1728246236816,0.003,62736.0,62735.0,0.4253]
[1728246237618,0.063755,62737.0,62735.0,0.3608]
[1728246237822,0.063755,62737.0,62735.0,0.3628]
[1728246239436,0.003,62736.0,62735.0,0.3628]
[1728246240140,0.066755,62737.0,62735.0,0.3628]
[1728246240935,0.003,62736.0,62735.0,0.3628]
[1728246241129,0.003,62736.0,62735.0,0.002]
[1728246241338,0.066756,62736.0,62735.0,0.002]
[1728246242431,0.063756,62736.0,62735.0,0.002]
[1728246242633,1.141956,62736.0,62735.0,0.002]
[1728246243440,1.144956,62736.0,62735.0,0.002]
[1728246243827,1.2021391,62736.0,62735.0,0.002]
[1728246244739,1.5629391,62736.0,62735.0,0.002]
[1728246249539,1.2021391,62736.0,62735.0,0.002]
[1728246250446,1.5629391,62736.0,62735.0,0.002]
[1728246251737,1.505756,62736.0,62735.0,0.002]
[1728246253039,1.505756,62736.0,62723.0,0.008]
[1728246253040,0.063768,62724.0,62723.0,0.008]
[1728246253237,0.173768,62724.0,62722.0,0.00239154]
[1728246254351,0.174768,62724.0,62723.0,0.002]
[1728246255047,0.174768,62724.0,62722.0,0.00439154]
[1728246255436,0.175768,62724.0,62723.0,0.001]
[1728246256148,0.175768,62724.0,62722.0,0.00539154]
[1728246256556,0.20461194,62724.0,62722.0,0.00539154]
[1728246256751,0.20461194,62724.0,62722.0,0.00339154]
[1728246256950,0.20461194,62724.0,62723.0,0.001]
[1728246258240,0.20361194,62724.0,62723.0,0.001]
[1728246258441,0.20461194,62724.0,62723.0,0.001]
[1728246258641,0.20461194,62724.0,62722.0,0.00239154]
[1728246258642,0.20361194,62724.0,62722.0,0.00239154]
[1728246258852,0.20461194,62724.0,62722.0,0.00339154]
[1728246259453,0.20361194,62724.0,62722.0,0.00239154]
[1728246259748,0.20461194,62724.0,62723.0,0.001]
[1728246260342,0.20461194,62724.0,62722.0,0.00439154]
[1728246261152,0.20461194,62724.0,62723.0,0.001]
[1728246261754,0.20461194,62724.0,62722.0,0.00439154]
[1728246262051,0.20461194,62724.0,62723.0,0.001]
[1728246262847,0.20361194,62724.0,62722.0,0.00339154]
[1728246263050,0.20461194,62724.0,62722.0,0.00439154]
[1728246263252,0.20361194,62724.0,62722.0,0.00339154]
[1728246263541,0.20461194,62724.0,62723.0,0.001]
[1728246264064,0.20461194,62724.0,62722.0,0.00439154]
[1728246264839,0.20361194,62724.0,62722.0,0.00239154]
[1728246265045,0.20461194,62724.0,62723.0,0.002]
[1728246265648,0.20361194,62724.0,62723.0,0.001]
[1728246265857,0.20461194,62724.0,62723.0,0.001]
[1728246266556,0.20461194,62724.0,62723.0,0.002]
[1728246267065,0.20461194,62724.0,62723.0,0.001]
[1728246267549,0.20361194,62724.0,62723.0,0.001]
[1728246267745,0.20461194,62724.0,62723.0,0.002]
[1728246280457,0.20361194,62724.0,62723.0,0.001]
[1728246280963,0.20461194,62724.0,62723.0,0.002]
[1728246283266,0.09461194,62724.0,62723.0,0.002]
[1728246291761,0.09461194,62724.0,62723.0,0.04980536]
[1728246295967,0.09461194,62724.0,62723.0,0.002]
[1728246324892,0.20461194,62724.0,62723.0,0.002]
[1728246326993,0.26180019,62724.0,62723.0,0.002]
[1728246327199,0.063776,62716.0,62715.0,0.0037]
[1728246327390,0.173776,62716.0,62712.0,0.39312]
[1728246327691,0.11,62713.0,62712.0,0.3914]
[1728246329697,0.111,62713.0,62712.0,0.3914]
[1728246330696,0.112,62713.0,62712.0,0.3914]
[1728246331196,0.112,62713.0,62712.0,0.0306]
[1728246331805,0.17578,62713.0,62710.0,0.3608]
[1728246331987,0.05718825,62712.0,62710.0,0.3608]
[1728246332590,0.05718825,62712.0,62708.0,0.0645]
[1728246332787,0.11,62710.0,62708.0,0.0645]
[1728246332992,0.11,62710.0,62709.0,0.3608]
[1728246335193,0.111,62710.0,62709.0,0.3608]
[1728246336291,0.112,62710.0,62709.0,0.3608]
[1728246354127,0.16919821,62710.0,62709.0,0.3608]
[1728246355210,0.16919821,62710.0,62707.0,0.063785]
[1728246355417,0.23298021,62710.0,62707.0,0.063785]
[1728246355607,0.05719821,62709.0,62707.0,0.063785]
[1728246356005,0.175782,62710.0,62707.0,0.063785]
[1728246356210,0.175782,62710.0,62702.0,0.3608]
[1728246356412,0.11,62703.0,62702.0,0.3608]
[1728246357602,0.111,62703.0,62702.0,0.3608]
[1728246358016,0.112,62703.0,62702.0,0.3608]
[1728246363209,0.112,62703.0,62695.0,0.40860536]
[1728246363411,0.11,62696.0,62695.0,0.3608]
[1728246364714,0.111,62696.0,62695.0,0.3608]
[1728246366222,0.112,62696.0,62695.0,0.3608]
[1728246367921,0.112,62696.0,62690.0,0.00239197]
[1728246368223,0.002,62696.0,62695.0,0.3608]
[1728246369230,0.112,62696.0,62695.0,0.3608]
[1728246369518,0.002,62696.0,62695.0,0.3608]
[1728246369722,0.112,62696.0,62695.0,0.3608]
[1728246382720,0.112,62696.0,62692.0,0.07804301]
[1728246382927,0.112,62696.0,62695.0,0.3608]
[1728246385727,0.112,62696.0,62690.0,0.00239197]
[1728246385728,0.112,62696.0,62691.0,0.04774301]
[1728246385934,0.112,62696.0,62690.0,0.00239197]
[1728246385935,0.1738,62692.0,62690.0,0.00239197]
[1728246387439,0.1748,62692.0,62690.0,0.00239197]
[1728246387634,0.1758,62692.0,62690.0,0.00239197]
[1728246396550,0.002,62692.0,62691.0,0.11]
[1728246396738,0.002,62692.0,62691.0,0.1421]
[1728246396939,0.002,62692.0,62691.0,0.18984301]
[1728246397145,0.002,62692.0,62691.0,0.1421]
[1728246397548,0.001,62692.0,62691.0,0.1421]
[1728246397745,0.002,62692.0,62691.0,0.1421]
[1728246402251,0.002,62692.0,62691.0,1.22062]
[1728246405857,0.002,62692.0,62691.0,0.62062]
[1728246408049,0.002,62692.0,62691.0,0.1421]
[1728246408445,0.002,62692.0,62691.0,0.8637]
[1728246408854,0.002,62692.0,62691.0,1.94222]
[1728246410966,0.002,62692.0,62691.0,1.4637]
[1728246411149,0.002,62692.0,62691.0,1.94222]
[1728246415353,0.002,62692.0,62691.0,1.97302]
[1728246415755,0.002,62692.0,62691.0,1.25142]
[1728246416063,0.002,62692.0,62691.0,1.97302]
[1728246416955,0.0623,62708.0,62692.0,0.47852]
[1728246417160,0.095301,62711.0,62707.0,0.3608]
[1728246417364,0.094381,62711.0,62707.0,0.3608]
[1728246417561,0.11239279,62709.0,62707.0,0.3608]
[1728246418656,0.001,62708.0,62707.0,0.3608]
[1728246419663,0.11439279,62709.0,62707.0,0.3608]
[1728246420063,0.11439279,62709.0,62707.0,0.3618]
[1728246422062,0.002,62708.0,62707.0,0.3618]
[1728246422854,0.11439279,62709.0,62707.0,0.3618]
[1728246423051,0.11439279,62709.0,62707.0,0.3608]
[1728246423254,0.11439279,62709.0,62707.0,0.3618]
[1728246423456,0.0307,62708.0,62707.0,0.3618]
[1728246423666,0.0327,62708.0,62707.0,0.3618]
[1728246424060,0.0327,62708.0,62707.0,0.001]
[1728246424271,0.08990309,62708.0,62707.0,0.001]
[1728246425461,0.08790309,62708.0,62707.0,0.001]
[1728246426358,0.08990309,62708.0,62707.0,0.001]
[1728246427861,0.09790561,62708.0,62707.0,0.001]
[1728246430867,0.09790561,62708.0,62698.0,0.3608]
[1728246431060,0.11,62699.0,62698.0,0.3608]
[1728246432767,0.111,62699.0,62698.0,0.3618]
[1728246433171,0.112,62699.0,62698.0,0.3618]
[1728246434861,0.14076944,62699.0,62698.0,0.3618]
[1728246435665,0.20456244,62699.0,62698.0,0.3618]
[1728246437369,0.20456244,62699.0,62698.0,0.001]
[1728246437570,0.175793,62699.0,62698.0,0.3618]
[1728246441174,0.065793,62699.0,62698.0,0.3618]
[1728246442575,0.09410013,62699.0,62698.0,0.3618]
[1728246451079,0.002,62699.0,62698.0,0.3618]
[1728246451278,0.002,62699.0,62698.0,0.4718]
[1728246451478,0.002,62699.0,62698.0,0.5045]
[1728246451881,0.002,62699.0,62698.0,0.56818569]
[1728246452581,0.0074,62705.0,62704.0,0.063788]
[1728246452777,0.11,62715.0,62702.0,0.15783945]
[1728246452778,0.00239279,62709.0,62702.0,0.15783945]
[1728246452975,0.00239279,62709.0,62706.0,0.063786]
[1728246454580,0.00339279,62709.0,62706.0,0.063786]
[1728246460090,0.00339279,62709.0,62706.0,0.0926693]
[1728246463982,0.00339279,62709.0,62706.0,0.063786]
[1728246466592,0.00339279,62709.0,62704.0,0.3608]
[1728246467587,0.00239279,62709.0,62704.0,0.3608]
[1728246467787,0.00239279,62709.0,62704.0,0.3628]
[1728246467985,0.00339279,62709.0,62704.0,0.3638]
[1728246468195,0.00339279,62709.0,62704.0,0.39316056]
[1728246473898,0.00339279,62709.0,62705.0,0.11]
[1728246475101,0.00339279,62709.0,62705.0,0.111]
[1728246476102,0.00339279,62709.0,62705.0,0.112]
[1728246480000,0.00339279,62709.0,62706.0,0.3608]
[1728246481203,0.00239279,62709.0,62708.0,0.11]
[1728246482303,0.00239279,62709.0,62708.0,0.111]
[1728246483203,0.00439279,62709.0,62708.0,0.111]
[1728246485101,0.00439279,62709.0,62708.0,0.4718]
[1728246485498,0.002,62709.0,62708.0,0.4718]
[1728246490912,0.002,62709.0,62708.0,1.5502]
[1728246491108,0.0074,62715.0,62714.0,0.063778]
[1728246491415,0.01349232,62722.0,62717.0,0.063775]
[1728246491613,0.00239232,62722.0,62717.0,0.063775]
[1728246492111,0.00239232,62722.0,62717.0,0.173775]
[1728246492308,0.11,62719.0,62717.0,0.063775]
[1728246492514,0.11,62719.0,62711.0,0.078581]
[1728246492714,0.11,62716.0,62711.0,0.063781]
[1728246493115,0.008,62715.0,62711.0,0.063781]
[1728246493514,0.11,62712.0,62711.0,0.063781]
[1728246494605,0.111,62712.0,62711.0,0.063781]
[1728246495515,0.111,62712.0,62711.0,0.424581]
[1728246495917,0.116,62712.0,62711.0,0.424581]
[1728246498515,0.006,62712.0,62711.0,0.424581]
[1728246504922,0.006,62712.0,62711.0,0.063781]
[1728246505219,0.006,62712.0,62711.0,0.424581]
[1728246507117,0.006,62712.0,62711.0,0.063781]
[1728246507321,0.006,62712.0,62711.0,0.424581]
[1728246512521,0.006,62712.0,62711.0,0.063781]
[1728246512716,0.006,62712.0,62711.0,0.424581]
[1728246517921,0.006,62712.0,62711.0,0.063781]
[1728246518126,0.006,62712.0,62711.0,0.424581]
[1728246518826,0.006,62712.0,62711.0,0.063781]
[1728246519126,0.006,62712.0,62711.0,0.424581]
[1728246523420,0.006,62712.0,62711.0,0.534581]
[1728246524018,0.0074,62718.0,62711.0,0.534581]
[1728246524229,0.0074,62720.0,62719.0,0.063773]
[1728246524419,0.05987821,62724.0,62722.0,0.06377]
[1728246525929,0.07387821,62724.0,62722.0,0.06377]
[1728246527226,0.04217821,62724.0,62722.0,0.06377]
[1728246527426,0.05517821,62724.0,62722.0,0.06377]
[1728246538339,0.05517821,62724.0,62721.0,0.11]
[1728246539634,0.05517821,62724.0,62721.0,0.001]
[1728246541037,0.05417821,62724.0,62721.0,0.001]
[1728246550637,0.11136638,62724.0,62721.0,0.001]
[1728246551041,0.05417821,62724.0,62721.0,0.001]
[1728246552035,0.026,62724.0,62721.0,0.001]
[1728246552236,0.026,62724.0,62721.0,0.111]
[1728246556442,0.026,62724.0,62722.0,0.063769]
[1728246557534,0.181164,62728.0,62722.0,0.063769]
[1728246557743,0.027,62724.0,62722.0,0.064769]
[1728246558646,0.013,62724.0,62722.0,0.064769]
[1728246558843,0.208164,62728.0,62722.0,0.064769]
[1728246559944,0.05718459,62727.0,62722.0,0.064769]
[1728246560241,0.014,62724.0,62722.0,0.064769]
[1728246560443,0.027,62724.0,62722.0,0.064769]
[1728246560841,0.05718459,62727.0,62722.0,0.064769]
[1728246561649,0.014,62724.0,62722.0,0.064769]
[1728246562149,0.027,62724.0,62722.0,0.064769]
[1728246563749,0.014,62724.0,62722.0,0.064769]
[1728246564442,0.013,62724.0,62722.0,0.064769]
[1728246565244,0.027,62724.0,62722.0,0.064769]
[1728246580152,0.137,62724.0,62722.0,0.064769]
[1728246580850,0.027,62724.0,62722.0,0.064769]
[1728246591869,0.027,62724.0,62723.0,0.3608]
[1728246592259,0.027,62724.0,62722.0,0.064769]
[1728246592562,0.027,62724.0,62723.0,0.3608]
[1728246592972,0.013,62724.0,62723.0,0.3608]
[1728246593270,0.028,62724.0,62723.0,0.3618]
[1728246599977,0.138,62724.0,62723.0,0.3618]
[1728246600181,0.08518634,62724.0,62723.0,0.3618]
[1728246600865,0.028,62724.0,62723.0,0.3618]
[1728246601270,0.028,62724.0,62723.0,0.001]
[1728246604171,0.08518634,62724.0,62723.0,0.001]
[1728246604675,0.08518634,62724.0,62718.0,0.0111]
[1728246604676,0.56346634,62724.0,62718.0,0.0111]
[1728246604878,0.56346634,62724.0,62705.0,0.3608]
[1728246604879,0.063777,62715.0,62705.0,0.3608]
[1728246605173,0.063783,62710.0,62705.0,0.3645]